Cogmind - Beta 13 @@@ ROGUE MODE // 2024.07.20 @ 05:03:36 Player: KingStarKing Result: Destroyed by B-86 Titan with Hardcell Cannon Performance ------------- Evolutions (6) 3000 Regions Visited (11) 2200 Robots Destroyed (80) 400 Value Destroyed (2250) 2250 Prototype IDs (10) 200 Alien Tech Used (0) 0 Bonus (-52) -52 TOTAL SCORE: 7998 Bonus ------- Follower Combat Kills 396 Aligned with FarCom 300 Friendly Fire -748 Cogmind --------- Core Integrity 0/1150 Matter 290/300 Energy 100/100 System Corruption 1% Temperature Cool (0) Movement Core (50) Location -4/Upper Caves Parts ------- > --- POWER (3) -------- (None) > --- PROPULSION (4) --- Medium Treads > --- UTILITY (10) ----- (None) > --- WEAPON (2) ------- (None) > --- INVENTORY (5) ---- Field Propulsion Drive Recalibrator Peak State ------------ > --- POWER ------------ Fusion Compressor Micro Fission Core Fusion Reactor > --- PROPULSION ------- Antigrav System Antigrav System Linear Gravjet Improved Linear Gravjet > --- UTILITY ---------- Improved Heat Sink Enhanced Optical Array Improved Target Analyzer Improved Target Analyzer Transmission Jammer Reaction Control System Improved Medium Armor Plating Improved Hardlight Generator System Shield Improved Corruption Screen > --- WEAPON ----------- Heavy Gauss Cannon Falx > --- INVENTORY -------- Enhanced Fission Core Improved Hover Unit Field Propulsion Drive Recalibrator Kinetic Spear [Rating: 100] Favorites ----------- Power Light Nuclear Core Engine Improved Ion Engine Power Core Light Nuclear Core Reactor Fusion Reactor Propulsion Aluminum Leg Treads Medium Treads Leg Aluminum Leg Wheel Compact Wheel Hover Unit Antigrav System Flight Unit Xenon Bombardment Thruster Utility Hacking Suite Device Cloak of Protection Storage Medium Storage Unit Processor Enhanced Optical Array Hackware Hacking Suite Protection Improved Medium Armor Plating Weapon Heavy EM Pulse Gun Energy Gun Heavy EM Pulse Gun Ballistic Gun Enhanced Autogun Ballistic Cannon Light Cannon Launcher Rocket Launcher Special Weapon Remote Datajack Slashing Weapon Great Axe Piercing Weapon Kinetic Spear Build | -11 -10 -10 -10 -9 -8 -7 -6 -6 -5 -4 -4 ------- Run | Yrd Mat Min Exi Min Mat Fac Fac Ext Fac Fac Upp Slots Evolved 12 | . . . . . 4 2 2 . 2 2 . Power 2 | . . . . . . 1 . . 1 . . Propulsion 2 | . . . . . 2 . . . . . . Utility 8 | . . . . . 2 1 2 . 1 2 . Weapon . | . . . . . . . . . . . . Parts Attached 173 | 11 12 . . 4 23 16 16 25 50 15 1 Power 29 | 2 3 . . . 1 6 5 2 8 2 . Engine 8 | 2 3 . . . . . . 2 1 . . Core 19 | . . . . . 1 6 5 . 5 2 . Reactor 2 | . . . . . . . . . 2 . . Propulsion 65 | 4 1 . . 2 15 . 2 15 19 6 1 Treads 11 | 2 . . . . 4 . . 4 . . 1 Leg 20 | 2 1 . . 2 7 . . 8 . . . Wheel 12 | . . . . . . . . . 12 . . Hover 13 | . . . . . . . . . 7 6 . Flight 9 | . . . . . 4 . 2 3 . . . Utility 50 | 2 1 . . 1 4 7 7 5 18 5 . Device 31 | 1 . . . 1 1 5 6 4 9 4 . Storage 3 | 1 1 . . . . 1 . . . . . Processor 8 | . . . . . . . . 1 6 1 . Hackware 6 | . . . . . 3 1 1 . 1 . . Protection 2 | . . . . . . . . . 2 . . Artifact . | . . . . . . . . . . . . Weapon 29 | 3 7 . . 1 3 3 2 3 5 2 . Energy Gun 8 | 2 6 . . . . . . . . . . Energy Cannon . | . . . . . . . . . . . . Ballistic Gun 7 | 1 1 . . . . . . 2 3 . . Ballistic Cannon 3 | . . . . . 1 . . . 1 1 . Launcher 4 | . . . . 1 1 . 1 1 . . . Special Weapon 1 | . . . . . . 1 . . . . . Impact Weapon . | . . . . . . . . . . . . Slashing Weapon 5 | . . . . . 1 2 1 . 1 . . Piercing Weapon 1 | . . . . . . . . . . 1 . Special Melee Weapon . | . . . . . . . . . . . . Unidentified Prototypes 5 | . . . . 1 . . . . 1 3 . Parts Lost 54 | . 2 . . . . 1 . 20 11 20 . Power 8 | . . . . . . . . 2 2 4 . Propulsion 25 | . . . . . . . . 11 6 8 . Utility 14 | . . . . . . 1 . 6 2 5 . Weapon 7 | . 2 . . . . . . 1 1 3 . Highest Loss Streak 11 | . 1 . . . . 1 . 10 4 11 . To Critical Strikes . | . . . . . . . . . . . . Average Slot Usage (%) 91 | . 99 100 100 100 96 91 93 81 84 84 1 Engine 5 | . 13 14 14 14 . . . 6 1 . . Core 5 | . . . . . 8 14 13 4 7 8 . Reactor 1 | . . . . . . . . . 4 3 . Treads 2 | . . . . . 16 . . . . . 1 Leg 12 | . 28 28 28 28 17 . . 6 . . . Wheel 1 | . . . . . . . . . 12 . . Hover 2 | . . . . . . . . . 8 18 . Flight 6 | . . . . . 1 30 26 15 . . . Device 16 | . 14 14 14 14 16 12 26 20 14 17 . Storage 5 | . 14 14 14 14 8 . . . . . . Processor 3 | . . . . . . . . . 10 18 . Hackware 8 | . . . . . 8 24 19 17 4 4 . Energy Gun 8 | . 23 28 28 23 1 . . . . . . Ballistic Gun 1 | . 3 . . . . . . . 3 . . Ballistic Cannon 1 | . . . . . 7 . . . . 3 . Launcher 1 | . . . . 4 4 . . 2 . . . Slashing Weapon 3 | . . . . . 4 7 6 5 4 4 . Naked Turns 280 | . . . . . . . . 120 28 46 86 Heaviest Build 60 | 13 24 24 24 32 32 26 28 43 60 56 . Greatest Support 92 | 40 20 20 20 20 80 33 33 92 64 41 3 Greatest Overweight (x) 5 | . 1 1 1 1 1 1 . 2 5 4 . Average Overweight (x) . | . . 1 1 1 . . . . . . . Largest Inventory Capacity 10 | 8 10 10 10 10 10 5 5 5 5 5 5 Average Capacity 7 | 7 8 10 10 10 9 5 5 5 5 5 5 Most Carried 10 | 4 10 10 10 10 10 5 5 5 5 5 2 Average Carried 6 | 2 8 9 9 9 9 4 4 4 4 4 2 Final Capacity 10 | 8 10 10 10 10 5 5 5 5 5 5 5 Final Carried 10 | 3 10 10 10 10 5 5 5 5 5 2 2 Class Distribution -------------------- 52% | Mutant 20% | Hacker-Sprinter 17% | Scavenger-Mutant 8% | Hacker-Mutant Dominant Class ---------------- Mutant | -10/Materials Mutant | -10/Mines Mutant | -10/Exiles Mutant | -9/Mines Mutant | -8/Materials Hacker-Sprinter | -7/Factory Hacker-Sprinter | -6/Factory Hacker-Mutant | -6/Extension Scavenger-Mutant | -5/Factory Scavenger-Mutant | -4/Factory Mutant | -4/Upper Caves Resources | -11 -10 -10 -10 -9 -8 -7 -6 -6 -5 -4 -4 ----------- Run | Yrd Mat Min Exi Min Mat Fac Fac Ext Fac Fac Upp Matter Collected 3807 | 241 235 . . 33 470 145 282 1307 679 415 . Remotely 190 | . . . . . . . . . 190 . . Salvage Created 3960 | 100 453 50 . 31 134 35 396 1249 1277 235 . Parts 197 | 13 32 7 . . 11 4 10 38 73 9 . Haulers Intercepted 1 | . 1 . . . . . . . . . . Recyclers Shooed 2 | 1 1 . . . . . . . . . . Parts Field Recycled . | . . . . . . . . . . . . Retrieved Matter . | . . . . . . . . . . . . Parts Self-Destructed . | . . . . . . . . . . . . Prevented . | . . . . . . . . . . . . Kills | -11 -10 -10 -10 -9 -8 -7 -6 -6 -5 -4 -4 ------- Run | Yrd Mat Min Exi Min Mat Fac Fac Ext Fac Fac Upp Combat Hostiles Destroyed 56 | . 12 3 . 10 5 . . 9 14 3 . Melee 13 | . . . . . . . . 6 7 . . Guns 22 | . 11 2 . 1 . . . 1 7 . . Cannons 5 | . . . . . 2 . . . . 3 . AOE 15 | . 1 1 . 9 3 . . 1 . . . Classes Destroyed 14 | 1 5 . . 1 1 . 1 4 1 . . Worker 3 | . . . . . . . . . 3 . . Builder 4 | . . . . . . . . 1 3 . . Tunneler 4 | 4 . . . . . . . . . . . Hauler 1 | . 1 . . . . . . . . . . Recycler 14 | . . . . . . . 3 5 5 1 . Operator 3 | . 1 . . . 2 . . . . . . Watcher 4 | . 1 . . . . 1 . . 1 1 . Swarmer 16 | . 6 3 . . . . . . 7 . . Grunt 13 | . 6 . . . 4 . . 3 . . . Sentry 1 | . . . . . . . . 1 . . . Hunter 2 | . . . . . 1 . . . 1 . . Programmer 10 | . . . . . . . . 1 6 3 . Assembled 10 | . . . . 10 . . . . . . . Thug 2 | . . . . . . . . 2 . . . Butcher 2 | . . . . . . . . 2 . . . Best Kill Streak 10 | 2 4 3 . 10 3 1 2 3 7 1 . Combat Bots Only 10 | . 4 3 . 10 3 . . 3 5 1 . Max Kills in Single Turn 4 | 1 2 1 . 4 2 1 1 1 1 1 . Gunslinging 1 | . 1 . . . . . . . . . . Exploded 4 | . 1 1 . 4 2 . . 1 . . . Melee 1 | . . . . . . . . 1 1 . . Uniques/NPCs Destroyed 1 | . . . . . . . . 1 . . . A7 (-6/Extension) Combat | -11 -10 -10 -10 -9 -8 -7 -6 -6 -5 -4 -4 -------- Run | Yrd Mat Min Exi Min Mat Fac Fac Ext Fac Fac Upp Hostile Shots Fired 540 | . 59 13 . . 18 . . 154 161 114 21 Missed 167 | . 18 3 . . 8 . . 47 39 42 10 Damage Taken 7777 | . 482 116 . 45 213 . . 2447 2076 2200 198 Core 2296 | . 108 59 . . 41 . . 811 115 1018 144 Absorbed by Shields 9 | . . . . . . . . 9 . . . Regen/Repaired (Parts) 113 | . . . . . 109 4 . . . . . Core Remaining (%) 69 | 100 . . . 33 92 100 . 4 88 . . Volleys Fired 174 | 14 49 4 . 10 18 . . 20 37 22 . Largest 2 | 2 2 2 . 1 2 . . 1 1 1 . Hottest 90 | 60 90 90 . 45 68 . . 43 33 61 . Shots Fired 236 | 28 80 8 . 10 28 . . 21 39 22 . Gun 166 | 28 80 8 . 1 . . . 10 39 . . Cannon 40 | . . . . . 18 . . . . 22 . Launcher 30 | . . . . 9 10 . . 11 . . . Special . | . . . . . . . . . . . . Kinetic 138 | 14 35 . . . 18 . . 10 39 22 . Thermal 26 | 14 12 . . . . . . . . . . Explosive 19 | . . . . 9 10 . . . . . . Electromagnetic 53 | . 33 8 . 1 . . . 11 . . . Robot Hit Streak 10 | 4 8 4 . 2 5 . . 9 10 5 . Robot Miss Streak 4 | 4 4 1 . 3 3 . . 2 3 2 . Penetration Max 1 | . . . . . . . . . 1 . . Secondary Targets 1 | . 1 . . . . . . . . . . Max Gunslinging Chain 1 | . 1 . . . . . . . . . . Shots Hit Robots 216 | 14 52 6 . 3 13 1 9 34 67 17 . Core Hits 126 | 6 24 3 . 21 14 1 4 22 25 6 . Critical Kills 1 | . 1 . . . . . . . . . . Critical Parts Destroyed 1 | . . . . . . . . . 1 . . Critical Strikes 8 | . 1 . . . . . . 2 2 3 . Destroy 2 | . 1 . . . . . . . 1 . . Blast 3 | . . . . . . . . . . 3 . Sever 3 | . . . . . . . . 2 1 . . Melee Attacks 223 | . . . . . 13 49 39 39 67 16 . Impact . | . . . . . . . . . . . . Slashing 223 | . . . . . 13 49 39 39 67 16 . Piercing . | . . . . . . . . . . . . Sneak Attacks 29 | . . . . . 1 . 1 14 12 1 . Combat Hostiles . | . . . . . . . . . . . . Follow-up Attacks . | . . . . . . . . . . . . Damage Inflicted 8837 | 139 696 114 . 956 661 45 430 2054 2967 769 6 Guns 1640 | 139 633 64 . 12 . . . 123 669 . . Cannons 781 | . . . . . 146 . . . . 635 . Explosions 2052 | . 54 45 . 939 440 . . 574 . . . Melee 4309 | . . . . . 75 45 430 1344 2298 117 . Ramming 55 | . 9 5 . 5 . . . 13 . 17 6 Kinetic 1771 | 50 148 . . . 146 . . 123 669 635 . Thermal 379 | 89 155 45 . . . . . 90 . . . Explosive 1379 | . . . . 939 440 . . . . . . Electromagnetic 944 | . 384 64 . 12 . . . 484 . . . Impact . | . . . . . . . . . . . . Slashing 4309 | . . . . . 75 45 430 1344 2298 117 . Piercing . | . . . . . . . . . . . . Highest Corruption 14 | . . . . . . . . 8 14 1 1 Average Corruption 6 | . . . . . . . . 2 9 1 1 Corruption Purged 5 | . . . . . . . . . 5 . . Corruption Blocked 3 | . . . . . . . . . . 3 . Effects 72 | . . . . . . . . 18 53 . 1 Message Errors 18 | . . . . . . . . 2 16 . . Matter Fused 20 | . . . . . . . . 6 14 . . Heat Flow Errors 7 | . . . . . . . . 2 5 . . Energy Discharges 13 | . . . . . . . . 5 8 . . Parts Rejected 1 | . . . . . . . . 1 . . . Parts Fused 1 | . . . . . . . . . 1 . . Data Loss (minor) 6 | . . . . . . . . 1 4 . 1 Data Loss (major) 2 | . . . . . . . . . 2 . . Misfires 3 | . . . . . . . . 1 2 . . Alerts 1 | . . . . . . . . . 1 . . Overload Shots . | . . . . . . . . . . . . Overflow Damage 892 | . 8 . . 65 5 . 97 214 404 98 1 Projectiles 54 | . . . . . . . . . . 54 . Explosions 78 | . 8 . . 65 5 . . . . . . Melee 760 | . . . . . . . 97 214 404 44 1 Knockbacks 7 | . . . . . 1 . . . . 6 . Impact . | . . . . . . . . . . . . Kinetic 7 | . . . . . 1 . . . . 6 . Secondary . | . . . . . . . . . . . . Self-Inflicted Damage 223 | . 58 40 . 29 66 . . 20 . 7 3 Shots 8 | . 2 1 . 2 2 . . 1 . . . Rammed 15 | . . . . . . . . 6 . 7 2 Targets Rammed 20 | . 1 2 . 1 . . . 7 . 7 2 Kicked 4 | . 1 2 . 1 . . . . . . . Crushed 1 | . . . . . . . . 1 . . . Highest Temperature 628 | 40 136 99 . 6 12 28 304 628 253 40 . Average Temperature 60 | 19 42 45 . 4 5 7 65 99 69 20 . Received Heat Transfer 1578 | . 180 . . . 36 . . 1176 63 123 . Effects 10 | . . . . . . . 3 7 . . . Shutdowns 3 | . . . . . . . . 3 . . . Energy Bleed 4 | . . . . . . . 1 3 . . . Interference 1 | . . . . . . . 1 . . . . Short Circuit 2 | . . . . . . . 1 1 . . . Siege Activations . | . . . . . . . . . . . . Robots Corrupted 1 | . . . . . . . . 1 . . . Combat Hostiles 1 | . . . . . . . . 1 . . . Parts Fried 2 | . 1 1 . . . . . . . . . Impact Corruptions 1 | . . . . . . . . . . . 1 Robots Melted . | . . . . . . . . . . . . Combat Hostiles . | . . . . . . . . . . . . Parts Melted 1 | . 1 . . . . . . . . . . Heat Transferred 675 | 200 275 . . . . . . 200 . . . Parts Sabotaged . | . . . . . . . . . . . . Parts Stolen . | . . . . . . . . . . . . Parts Stripped . | . . . . . . . . . . . . Power Chain Reactions 5 | . 2 1 . . . . . 2 . . . Alert | -11 -10 -10 -10 -9 -8 -7 -6 -6 -5 -4 -4 ------- Run | Yrd Mat Min Exi Min Mat Fac Fac Ext Fac Fac Upp Peak Influence 367 | 20 250 79 . 104 146 45 73 367 351 106 . Initial 73 | . 13 2 . . 4 7 1 1 63 73 . Average 71 | 7 69 7 . 63 24 14 17 141 166 58 . Maximum Alert Level 1 | . 1 . . . . . . 1 1 . . Low Security (%) 88 | 100 89 100 . 100 100 100 100 65 67 100 . Level 1 11 | . 10 . . . . . . 34 32 . . Level 2 . | . . . . . . . . . . . . Level 3 . | . . . . . . . . . . . . Level 4 . | . . . . . . . . . . . . Level 5 . | . . . . . . . . . . . . High Security . | . . . . . . . . . . . . Max Security . | . . . . . . . . . . . . Squads Dispatched 24 | . 3 . . . 8 3 1 3 2 4 . Investigation 8 | . 2 . . . 1 3 . 2 . . . Extermination 4 | . . . . . . . 1 . 2 1 . Reinforcement 9 | . 1 . . . 4 . . 1 . 3 . Assault . | . . . . . . . . . . . . Garrison 3 | . . . . . 3 . . . . . . Intercept . | . . . . . . . . . . . . Searches Triggered . | . . . . . . . . . . . . Construction Impeded 2 | . . . . . . . . 1 . 1 . Haulers Reinforced . | . . . . . . . . . . . . Active Scanning Responses . | . . . . . . . . . . . . Cargo Convoy Interrupts . | . . . . . . . . . . . . Stealth | -11 -10 -10 -10 -9 -8 -7 -6 -6 -5 -4 -4 --------- Run | Yrd Mat Min Exi Min Mat Fac Fac Ext Fac Fac Upp Distress Signals 9 | . 4 . . . 3 . . 2 . . . Communications Jammed 6 | . . . . . . . . . 2 4 . Distress Signals 6 | . . . . . . . . . 2 4 . Times Spotted 131 | . 20 3 . 15 8 2 3 29 24 21 6 Peak Tracking Total 12 | . 5 3 . 7 3 1 1 5 5 12 3 Tactical Retreats 22 | . . . . . . . . 13 6 2 1 Traps | -11 -10 -10 -10 -9 -8 -7 -6 -6 -5 -4 -4 ------- Run | Yrd Mat Min Exi Min Mat Fac Fac Ext Fac Fac Upp Traps Triggered 9 | . 2 . . . . 1 1 2 3 . . Indirectly . | . . . . . . . . . . . . Trap Hack Attempts . | . . . . . . . . . . . . Triggered . | . . . . . . . . . . . . Disarmed . | . . . . . . . . . . . . Reprogrammed 3 | . . . . . . . . 3 . . . Reused 2 | . . . . . . . . 2 . . . Traps Extracted . | . . . . . . . . . . . . Installed . | . . . . . . . . . . . . Triggered 2 | . . . . . . . . 2 . . . Machines | -11 -10 -10 -10 -9 -8 -7 -6 -6 -5 -4 -4 ---------- Run | Yrd Mat Min Exi Min Mat Fac Fac Ext Fac Fac Upp Machines Disabled 1 | . . . . . . . . 1 . . . Max in Single Turn 1 | . . . . . . . . 1 . . . Garrison Access 2 | . . . . . . 2 . . . . . Machines Repaired . | . . . . . . . . . . . . Machines Dismantled . | . . . . . . . . . . . . Machines Sabotaged . | . . . . . . . . . . . . Overloaded Fab Kills . | . . . . . . . . . . . . Hacking | -11 -10 -10 -10 -9 -8 -7 -6 -6 -5 -4 -4 --------- Run | Yrd Mat Min Exi Min Mat Fac Fac Ext Fac Fac Upp Machines Accessed 34 | . 6 . . . 2 14 4 7 1 . . Terminals 23 | . 4 . . . 1 7 3 7 1 . . Fabricators 3 | . . . . . . 2 1 . . . . Repair Stations 4 | . 1 . . . 1 2 . . . . . Recycling Units 1 | . 1 . . . . . . . . . . Scanalyzers 1 | . . . . . . 1 . . . . . Garrison Access 2 | . . . . . . 2 . . . . . Total Hacks 91 | . 14 . . . 13 34 9 20 1 . . Successful 60 | . 4 . . . 11 27 6 12 . . . Failed 31 | . 10 . . . 2 7 3 8 1 . . Catastrophic 1 | . . . . . . . . 1 . . . Database Lockouts . | . . . . . . . . . . . . Manual 4 | . . . 2 . . 2 . . . . . Terminals 61 | . 10 . . . 4 18 8 20 1 . . Fabricators 5 | . . . . . . 4 1 . . . . Repair Stations 16 | . 3 . . . 9 4 . . . . . Recycling Units 1 | . 1 . . . . . . . . . . Scanalyzers 6 | . . . . . . 6 . . . . . Garrison Access 2 | . . . . . . 2 . . . . . Terminal Hacks 35 | . 2 . . . 2 14 5 12 . . . Record 2 | . . . . . . 1 1 . . . . Robot Analysis 1 | . . . . . . 1 . . . . . Prototype ID Bank 1 | . . . . . . 1 . . . . . Open Door 6 | . . . . . . . 1 5 . . . Emergency Access Points 2 | . . . . . . 2 . . . . . Locate Traps 2 | . 1 . . . . 1 . . . . . Reprogram Traps 2 | . . . . . . . . 2 . . . Dispatch Records 4 | . . . . . 1 2 . 1 . . . Maintenance Status 2 | . . . . . . 1 . 1 . . . Security Status 2 | . . . . . 1 1 . . . . . Surveillance Status 1 | . . . . . . 1 . . . . . Patrol Status 1 | . . . . . . . . 1 . . . Investigation Status 2 | . . . . . . . 1 1 . . . Extermination Status 1 | . . . . . . . 1 . . . . Recall Investigation 1 | . . . . . . . . 1 . . . Recall Extermination 1 | . . . . . . . 1 . . . . Hauler Manifests 1 | . . . . . . 1 . . . . . Registered Prototypes 1 | . . . . . . 1 . . . . . Zone Layout 2 | . 1 . . . . 1 . . . . . Fabricator Hacks 5 | . . . . . . 4 1 . . . . Network Status 3 | . . . . . . 3 . . . . . Build 2 | . . . . . . 1 1 . . . . Repair Station Hacks 12 | . 1 . . . 9 2 . . . . . Scan Component 7 | . 1 . . . 5 1 . . . . . Repair 5 | . . . . . 4 1 . . . . . Recycling Unit Hacks 1 | . 1 . . . . . . . . . . Report Inventory 1 | . 1 . . . . . . . . . . Scanalyzer 5 | . . . . . . 5 . . . . . Insert Component 2 | . . . . . . 2 . . . . . Analyze 3 | . . . . . . 3 . . . . . Garrison Access Hacks 2 | . . . . . . 2 . . . . . Seal Access 2 | . . . . . . 2 . . . . . Unauthorized Hacks . | . . . . . . . . . . . . Terminals . | . . . . . . . . . . . . Fabricators . | . . . . . . . . . . . . Repair Stations . | . . . . . . . . . . . . Recycling Units . | . . . . . . . . . . . . Scanalyzers . | . . . . . . . . . . . . Garrison Access . | . . . . . . . . . . . . Data Cores Recovered . | . . . . . . . . . . . . Used . | . . . . . . . . . . . . Hacking Detections 20 | . 4 . . . 2 10 2 2 . . . Full Trace Events 9 | . 2 . . . 2 3 . 2 . . . Feedback Events 1 | . . . . . . 1 . . . . . Hackware Fried 1 | . . . . . . 1 . . . . . Feedback Blocked . | . . . . . . . . . . . . Robot Schematics Acquired . | . . . . . . . . . . . . Robots Built . | . . . . . . . . . . . . Authchips . | . . . . . . . . . . . . Time . | . . . . . . . . . . . . Total Robot Build Rating . | . . . . . . . . . . . . Part Schematics Acquired 1 | . . . . . . 1 . . . . . Parts Built 3 | . . . . . . 1 2 . . . . Authchips . | . . . . . . . . . . . . Time 201 | . . . . . . 84 117 . . . . Total Part Build Rating 18 | . . . . . . 4 14 . . . . Parts Repaired 5 | . . . . . 4 1 . . . . . Time 175 | . . . . . 137 38 . . . . . Parts Recycled . | . . . . . . . . . . . . Recycled Matter . | . . . . . . . . . . . . Retrieved Matter . | . . . . . . . . . . . . Retrieved Components . | . . . . . . . . . . . . Parts Scanalyzed 2 | . . . . . . 2 . . . . . Part Schematics Acquired 1 | . . . . . . 1 . . . . . Parts Damaged . | . . . . . . . . . . . . Bothacking | -11 -10 -10 -10 -9 -8 -7 -6 -6 -5 -4 -4 ------------ Run | Yrd Mat Min Exi Min Mat Fac Fac Ext Fac Fac Upp Used RIF Installer . | . . . . . . . . . . . . Robots Hacked . | . . . . . . . . . . . . Non-combat . | . . . . . . . . . . . . Combat . | . . . . . . . . . . . . Robot Hacks Applied . | . . . . . . . . . . . . Relay Couplers Released . | . . . . . . . . . . . . Fabnet Peak Effective % . | . . . . . . . . . . . . Robots Rewired . | . . . . . . . . . . . . Allies Hacked . | . . . . . . . . . . . . Hacks Repelled . | . . . . . . . . . . . . Allies | -11 -10 -10 -10 -9 -8 -7 -6 -6 -5 -4 -4 -------- Run | Yrd Mat Min Exi Min Mat Fac Fac Ext Fac Fac Upp Total Allies 11 | . . 4 . . . . . 7 . . . Largest Group 4 | . . 4 4 3 . . . 4 . . . Highest-Rated Group 229 | . . 71 71 40 . . . 229 . . . Highest-Rated Ally 159 | . . 31 31 16 . . . 159 . . . Total Orders . | . . . . . . . . . . . . Ally Attacks 92 | . . . . 22 . . . 70 . . . Total Damage 1543 | . . . . 226 . . . 1317 . . . Kills 16 | . . . . 5 . . . 11 . . . Allies Corrupted . | . . . . . . . . . . . . Allies Melted . | . . . . . . . . . . . . Intel | -11 -10 -10 -10 -9 -8 -7 -6 -6 -5 -4 -4 ------- Run | Yrd Mat Min Exi Min Mat Fac Fac Ext Fac Fac Upp Robot Analysis Total 1 | . . . . . . 1 . . . . . Derelict Logs Recovered 2 | . . 1 . 1 . . . . . . . Drone Launches . | . . . . . . . . . . . . Drone Recoveries . | . . . . . . . . . . . . Exploration | -11 -10 -10 -10 -9 -8 -7 -6 -6 -5 -4 -4 ------------- Run | Yrd Mat Min Exi Min Mat Fac Fac Ext Fac Fac Upp Turns Passed 11082 | 219 1589 861 391 684 1465 943 856 1430 1710 834 100 Spaces Moved 8140 | 131 879 432 206 337 642 1321 1079 1383 1094 511 125 Core 471 | 5 . . . . . . . 208 55 78 125 Treads 223 | 16 . . . . 196 . . 11 . . . Legs 2587 | 110 879 432 206 337 357 . . 266 . . . Wheels 521 | . . . . . . . . . 521 . . Hover 951 | . . . . . . . . . 518 433 . Flight 3387 | . . . . . 89 1321 1079 898 . . . Fastest Speed 29 | 50 120 190 190 190 31 31 31 29 50 50 50 Average Speed 95 | 122 151 190 190 190 159 31 31 68 106 91 50 Slowest Speed 300 | 160 190 190 190 190 250 111 31 190 300 250 50 Overloaded Moves . | . . . . . . . . . . . . Propulsion Burnouts . | . . . . . . . . . . . . Robots Hopped 1 | . . . . . . . . 1 . . . Cave-ins Triggered 1 | . . . . . . . . 1 . . . Exploration Rate (%) 46 | 7 97 78 60 85 58 39 19 74 20 10 16 Regions Visited 11 Branch Regions 5 Pre-discovered Areas 1 | . . . . 1 . . . . . . . Known Exits Taken . | . . . . . . . . . . . . Unknown Exits Taken 11 | 1 1 1 1 1 1 1 1 1 1 1 . Scrap Searched 3 | . . 1 . 1 . . . . . . 1 Spaces Dug 135 | . . . . . 19 47 29 13 16 11 . Terrain Destroyed 303 | . 8 7 . 68 94 47 29 16 16 18 . Melee 127 | . . . . . 11 47 29 13 16 11 . Projectile 7 | . . . . . . . . . . 7 . AOE 169 | . 8 7 . 68 83 . . 3 . . . Terrain Rammed . | . . . . . . . . . . . . Walls Destroyed . | . . . . . . . . . . . . Machines Disabled . | . . . . . . . . . . . . Actions | -11 -10 -10 -10 -9 -8 -7 -6 -6 -5 -4 -4 --------- Run | Yrd Mat Min Exi Min Mat Fac Fac Ext Fac Fac Upp Total 10824 | 159 1065 465 207 371 1038 1770 1532 1770 1467 819 161 Wait 1881 | . 103 22 . 16 298 360 368 241 196 244 33 Move 8127 | 130 878 431 205 336 641 1320 1078 1380 1093 510 125 Hop 1 | . . . . . . . . 1 . . . Pick Up 60 | 3 14 2 1 1 17 10 2 5 4 1 . Fast Attach 89 | 7 4 . . . 13 4 5 12 36 7 1 Attach 29 | . 3 . . 1 2 5 3 7 3 5 . Detach 11 | . . . . . . 3 2 6 . . . Swap 56 | 4 5 . . 3 8 7 8 6 12 3 . Drop 97 | 1 8 2 1 3 28 12 9 10 19 4 . Fire 174 | 14 49 4 . 10 18 . . 20 37 22 . Melee 223 | . . . . . 13 49 39 39 67 16 . Ram 11 | . . . . . . . . 2 . 7 2 Kick 4 | . 1 2 . 1 . . . . . . . Crush 5 | . . . . . . . . 5 . . . Escape Stasis 49 | . . . . . . . 18 31 . . . Rewire 7 | . . 2 . . . . . 5 . . . Trap . | . . . . . . . . . . . . Miscellaneous . | . . . . . . . . . . . . Route ------- -11/Scrapyard -10/Materials (discovered 4 exits: [*Mat x3] / [*Min]) -10/Mines (discovered 3 exits: [*Mat x2] / *Exi) -10/Exiles -9/Mines (discovered 2 exits: *Mat x2) -8/Materials (discovered 2 exits: *Fac / *Sto) -7/Factory (discovered 2 exits: *Fac / [*Low]) -6/Factory -6/Extension (discovered 2 exits: *Fac / [*Cet]) -5/Factory (discovered 2 exits: [*Fac x2]) -4/Factory -4/Upper Caves History --------- Turn | Location | Event 10 | -11/Scrapyard | Discovered new exit (range 15) 220 | -11/Scrapyard | Entered Materials 309 | -10/Materials | Build established: Mutant 751 | -10/Materials | Discovered new exit (range 15) 1040 | -10/Materials | Discovered new exit (range 14) 1160 | -10/Materials | Discovered new exit (range 15) 1605 | -10/Materials | Discovered new exit (range 4) 1809 | -10/Materials | Entered Mines 1816 | -10/Mines | Received a Rocket Launcher from a helpful Derelict 1995 | -10/Mines | Discovered new exit (range 6) 2133 | -10/Mines | Core integrity fell below 50% 2315 | -10/Mines | Learned 4 Materials zone layouts 2496 | -10/Mines | Assisted by bots powering up and referring to "LRC-V3" 2618 | -10/Mines | Discovered new exit (range 6) 2621 | -10/Mines | Received a Mining Laser from a helpful Derelict 2653 | -10/Mines | Deemed a non-threat by the Exiles lab entrance 2655 | -10/Mines | Discovered new exit (range 5) 2670 | -10/Mines | Entered Exiles 2670 | -10/Exiles | Accompanied by 4 allies 2716 | -10/Exiles | Met 8R-AWN 2750 | -10/Exiles | Met EX-HEX 2800 | -10/Exiles | Met EX-BIN 2824 | -10/Exiles | Aligned with FarCom system 2826 | -10/Exiles | Given EX-Vault access code 2870 | -10/Exiles | Opened EX-Vault 2882 | -10/Exiles | Found Prototype Device 2925 | -10/Exiles | Warned to stay clear of 0b10 Research branches 2978 | -10/Exiles | Met EX-DEC 3041 | -10/Exiles | Discovered new exit (range 14) 3061 | -10/Exiles | Left Exiles lab with Cloak of Protection 3061 | -10/Exiles | Entered Mines 3061 | -9/Mines | Accompanied by 3 allies 3111 | -9/Mines | Discovered new exit (range 13) 3211 | -9/Mines | Identified Cloak of Protection 3447 | -9/Mines | Found a damaged Exp. Sensor Array with a note attached 3451 | -9/Mines | Found Prototype Device 3501 | -9/Mines | Assembled infested the area 3506 | -9/Mines | Assisted by a Guerilla fighting off Assembled 3557 | -9/Mines | Destroyed 10 combat bots 3558 | -9/Mines | Lost 3 allies 3657 | -9/Mines | Discovered new exit (range 10) 3673 | -9/Mines | Learned location of Storage (-8) 3745 | -9/Mines | Entered Materials 3745 | -8/Materials | Evolved 4 slots: Propulsion x2, Utility x2 3746 | -8/Materials | Identified exit to Storage 3842 | -8/Materials | Repaired Corrupted Hacking Suite 3870 | -8/Materials | Repaired Aluminum Leg 3897 | -8/Materials | Repaired Aluminum Leg 3931 | -8/Materials | Repaired Rocket Launcher 4248 | -8/Materials | Garrison activated, responded to threat 5204 | -8/Materials | Discovered new exit (range 11) 5210 | -8/Materials | Entered Factory 5210 | -7/Factory | Evolved 2 slots: Power x1, Utility x1 5397 | -7/Factory | Hacking Suite fried by hacking feedback 5424 | -7/Factory | Build established: Hacker-Sprinter 5790 | -7/Factory | Fabricated Remote Datajack (x1) 5818 | -7/Factory | Identified Exp. Sensor Array 5918 | -7/Factory | Repaired Lgt. Nuclear Core 5993 | -7/Factory | Discovered new exit (range 11) 6099 | -7/Factory | Discovered new exit (range 16) 6153 | -7/Factory | Entered another Factory area 6153 | -6/Factory | Evolved 2 slots: Utility x2 6378 | -6/Factory | Fabricated Imp. Gyrokinetic Inverter (x2) 7004 | -6/Factory | Discovered new exit (range 9) 7009 | -6/Factory | Entered Extension 7030 | -6/Extension | Rescued a captive Derelict 7030 | -6/Extension | Rescued a captive Derelict 7066 | -6/Extension | Rescued a captive Derelict 7108 | -6/Extension | Rescued a captive Derelict 7169 | -6/Extension | Spotted B-75 Beast 7334 | -6/Extension | Disrupted transfer network 7487 | -6/Extension | Build established: Hacker-Mutant 7498 | -6/Extension | Lost 3 allies 7634 | -6/Extension | Rescued A7 7674 | -6/Extension | Rescued a captive Derelict 7675 | -6/Extension | Rescued a captive Derelict 7834 | -6/Extension | Murdered A7 7834 | -6/Extension | Destroyed A7 7885 | -6/Extension | Lost 3 parts (2n1u) 8204 | -6/Extension | Crushed by falling debris 8250 | -6/Extension | Spotted B-75 Beast 8259 | -6/Extension | Extracted ID and sensor layout for unrecognized location from A7's data core 8276 | -6/Extension | Core integrity fell below 50% 8278 | -6/Extension | Released all parts (6) 8301 | -6/Extension | Lost 10 parts (2p5n2u1w) 8315 | -6/Extension | Discovered new exit (range 16) 8316 | -6/Extension | Discovered new exit (range 15) 8352 | -6/Extension | Core integrity fell below 20% 8439 | -6/Extension | Entered Factory 8439 | -5/Factory | Evolved 2 slots: Power x1, Utility x1 8447 | -5/Factory | Lost 4 parts (4n) 8458 | -5/Factory | Discovered new exit (range 4) 8568 | -5/Factory | Build established: Mutant 8929 | -5/Factory | Lost 4 parts (1p3n) 9222 | -5/Factory | Build established: Scavenger-Mutant 9289 | -5/Factory | System corruption reached 10% 9356 | -5/Factory | Lost 4 parts (2n1u1w) 9716 | -5/Factory | Discovered new exit (range 10) 10149 | -5/Factory | Entered another Factory area 10149 | -4/Factory | Evolved 2 slots: Utility x2 10779 | -4/Factory | Lost 6 parts (2p2n2u) 10906 | -4/Factory | Released all parts (7) 10932 | -4/Factory | Lost 11 parts (1p5n2u3w) 10936 | -4/Factory | Core integrity fell below 50% 10955 | -4/Factory | Discovered new exit (range 15) 10979 | -4/Factory | Core integrity fell below 20% 10983 | -4/Factory | Entered Upper Caves 11050 | -4/Upper Caves | Attracted the attention of an 0b10 checkpoint 11082 | -4/Upper Caves | Spotted B-86 Titan 11083 | -4/Upper Caves | Destroyed by B-86 Titan with Hardcell Cannon Last Messages --------------- 10978_ Destabilizing: Core damaged (-23). 10979_ Slammed into Y-64 Sentinel. 10980_ Critical hit (Burn: +37). 10980_ Penetrated by Slug. 10980_ Slammed into Y-64 Sentinel. 10983_ Slug penetrates Wall. LOCATION=UNKNOWN GOAL=ESCAPE 11006_ Searching scrap... 11006_ Found Matter Compressor. 11006_ Found 17 Matter. 11050_ Y-64 Sentinel: "INTERCEPTING UNREGISTERED DERELICT." 11052_ Slug penetrates Wall. 11059_ Slammed into X6-865(S). 11060_ Destroyed Com. Battery. 11060_ X6-865(S) system corrupted by crushing effect. 11061_ Penetrated by Slug. 11064_ Slug penetrates X6-865(S). 11069_ Acquired Med. Treads. 11081_ System corrupted: Component data lost. Map ----- +----------------------------------------------------+ | #?????????????????????? | | % #?????????????????????? | | # ! ## #?????????????????????? | | # % ##### ## ## #?#####???????????????? | | # ### ##??## #????# ### #???????????????? | | ##?# #??##! #????# ## #???????????????? | | ##??# #?## %! #????# ## #####???????????? | | ### %#%### ##???# ## #???????????? | | #?# %% ##### #???????????? | | # ## # #??????????? | | ### #### ## # # ##??????????? | | ?# ??????# ### #### # #####???????????? | | ?????????# ## #?## #??# ## #???????????????? | | ?????##??# ?###### #?? ### #???????????????? | | ?????# ##### ### # # #???????????????? | | ?????# ## # ^ #???????????????? | | ?????# ### # # ##???????????????? | | ?????## ????# ###### ##????????????????? | | ??????## ?????# #????? ??????????????????? | | ???????##??????# #????? ??????????????????? | | ???????????????# ##????? ?#????????????????? | | ???????????????# #?????? #????????????????? | | ???????????????# #????? #????????????????? | | ???????????????#### ####??## #????????????????? | | ??????????????????# ######; ##???????????????? | | ??????????????????# s % @ #???????????? | | ??????????????????######### #???????????? | | ????????????????????????????? BB #??????????? | | ???????????????????????????????BB #??????????? | | ????????????????????????????????? #?????????? | | ??????????????????????????????????? ??????????? | | ????????????????????????????????????? #??????????? | | ?????????????????????????????????????????????????? | | ?????????????????????????????????????????????????? | | ?????????????????????????????????????????????????? | | ?????????????????????????????????????????????????? | | ?????????????????????????????????????????????????? | | ?????????????????????????????????????????????????? | | ?????????????????????????????????????????????????? | | ?????????????????????????????????????????????????? | | ?????????????????????????????????????????????????? | | ?????????????????????????????????????????????????? | | ?????????????????????????????????????????????????? | | ?????????????????????????????????????????????????? | | ?????????????????????????????????????????????????? | | ?????????????????????????????????????????????????? | | ?????????????????????????????????????????????????? | | ?????????????????????????????????????????????????? | | | | | +----------------------------------------------------+ Best States ------------- Heat Dissipation 71 Energy Generation 61 Energy Capacity 420 Matter Stores 300 Matter Capacity 300 Sight Range 22 Terrain Scan Range 16 Terrain Scan Density 10 ECM Strength 2 Jamming Range 12 Cloak Strength 5 Power Amplification 40 Additional Mass Support 9 Corruption Block 15 Armor Coverage 825 Phase Shifting 5 Evasion (%) 64 Melee Accuracy 14 Target Analysis 9 Recoil Reduction 4 Offensive Hacking 40 Defensive Hacking 10 Item Schematics ----------------- Enh. Autogun | -7/Factory | Scanalyzed Robot Schematics ------------------ None Fabricated ------------ Remote Datajack | x1 | -7/Factory | Preloaded Imp. Gyrokinetic Inverter | x2 | -6/Factory | Preloaded Alien Tech Used ----------------- None Achievements -------------- Close Call Just What I Needed Leap Before You Look Please Form A Line Prison Break System Compromised Use The Force Challenges ------------ None Game ------ Seed TrackerServoInitializer Manual? 0 Play Time 02:44:09 Cumulative 21.1 hours Start 2024.07.17 @ 17:10:52 End 2024.07.20 @ 05:03:36 Sessions 7 Manual Loads 0 Difficulty Rogue Special Mode None Game No. 20 Rogue 20 Adventurer 0 Explorer 0 Win Type - Total 0 Types 0/0/0/0/0/0/0/0/0 Lore% 15 Gallery% 22 Achievement% 19 Wizard Run 0 Options --------- Layout 0 ASCII 0 Keyboard 0 Movement Numpad Keybinds 0 Fullscreen 2 Font 18/Smallcaps Map View 38x25 Zoom Use 67% Tactical HUD 1 Map Filters NONE Filters NONE Steam 1 RUN: 7d2fadff-e948-465a-b301-13733c8c2193